[Event "Titled Tuesday Blitz May 10 Late 2022"]
[White "Przybylski, Wojciech"]
[Black "Kanyamarala, Tarun"]
[WhiteFideId "1117599"]
[BlackFideId "45004714"]
[WhiteElo "2133"]
[BlackElo "2219"]
[Result "1-0"]
[Round "06"]
[TimeControl "180+1"]
[Date "2022.05.11"]
[WhiteClock "0:01:22"]
[BlackClock "0:00:52"]

1. e4 {[%clk 0:02:52]}  d6 {[%clk 0:03:00]} 2. d4 {[%clk 0:02:52]}  Nf6 {[%clk 0:03:00]} 3. Bd3 {[%clk 0:02:51]}  e5 {[%clk 0:03:01]} 4. Ne2 {[%clk 0:02:49]}  exd4 {[%clk 0:02:57]} 5. Nxd4 {[%clk 0:02:49]}  Be7 {[%clk 0:02:55]} 6. O-O {[%clk 0:02:48]}  O-O {[%clk 0:02:56]} 7. Re1 {[%clk 0:02:47]}  c6 {[%clk 0:02:55]} 8. c4 {[%clk 0:02:46]}  Na6 {[%clk 0:02:54]} 9. Nc3 {[%clk 0:02:45]}  Nc5 {[%clk 0:02:53]} 10. Bc2 {[%clk 0:02:45]}  a5 {[%clk 0:02:53]} 11. h3 {[%clk 0:02:43]}  Re8 {[%clk 0:02:51]} 12. b3 {[%clk 0:02:41]}  Bf8 {[%clk 0:02:48]} 13. Bb2 {[%clk 0:02:39]}  g6 {[%clk 0:02:39]} 14. Qd2 {[%clk 0:02:38]}  Bg7 {[%clk 0:02:39]} 15. Rad1 {[%clk 0:02:37]}  Qc7 {[%clk 0:02:36]} 16. Nf3 {[%clk 0:02:33]}  Be6 {[%clk 0:02:24]} 17. Qxd6 {[%clk 0:02:30]}  Qxd6 {[%clk 0:02:24]} 18. Rxd6 {[%clk 0:02:29]}  Nfxe4 {[%clk 0:02:24]} 19. Bxe4 {[%clk 0:02:24]}  Nxe4 {[%clk 0:02:00]} 20. Rxe4 {[%clk 0:02:22]}  b5 {[%clk 0:01:56]} 21. cxb5 {[%clk 0:02:18]}  cxb5 {[%clk 0:01:54]} 22. Nd1 {[%clk 0:02:17]}  Bf8 {[%clk 0:01:51]} 23. Rd2 {[%clk 0:02:12]}  a4 {[%clk 0:01:47]} 24. Nd4 {[%clk 0:02:05]}  axb3 {[%clk 0:01:43]} 25. axb3 {[%clk 0:02:04]}  Bd5 {[%clk 0:01:35]} 26. Rxe8 {[%clk 0:02:02]}  Rxe8 {[%clk 0:01:36]} 27. Ne3 {[%clk 0:02:01]}  Be4 {[%clk 0:01:36]} 28. Nxb5 {[%clk 0:01:59]}  Rb8 {[%clk 0:01:35]} 29. Nd4 {[%clk 0:01:58]}  Bb4 {[%clk 0:01:34]} 30. Rd1 {[%clk 0:01:57]}  f5 {[%clk 0:01:35]} 31. f3 {[%clk 0:01:56]}  Ba8 {[%clk 0:01:35]} 32. f4 {[%clk 0:01:55]}  Re8 {[%clk 0:01:33]} 33. Nc4 {[%clk 0:01:53]}  Bc5 {[%clk 0:01:31]} 34. Kf1 {[%clk 0:01:52]}  Re4 {[%clk 0:01:30]} 35. g3 {[%clk 0:01:49]}  g5 {[%clk 0:01:13]} 36. Re1 {[%clk 0:01:40]}  gxf4 {[%clk 0:00:56]} 37. Rxe4 {[%clk 0:01:38]}  fxe4 {[%clk 0:00:55]} 38. gxf4 {[%clk 0:01:37]}  Kf7 {[%clk 0:00:55]} 39. Ne5+ {[%clk 0:01:34]}  Ke8 {[%clk 0:00:54]} 40. Ne6 {[%clk 0:01:23]}  Be3 {[%clk 0:00:52]} 41. Ke2 {[%clk 0:01:22]}  Ba7 {[%clk 0:00:52]} 1-0


[Site "https://www.chess.com"]

[Event "Titled Tuesday Blitz May 10 Late 2022"]
[White "Radovanovic, Mihajlo"]
[Black "Al-Tarboush, Ward"]
[WhiteFideId "940313"]
[BlackFideId "7601450"]
[WhiteElo "2700"]
[BlackElo "2555"]
[Result "0-1"]
[Round "06"]
[TimeControl "180+1"]
[Date "2022.05.11"]
[WhiteClock "0:00:21"]
[BlackClock "0:02:00"]

1. e4 {[%clk 0:03:00]}  e6 {[%clk 0:02:59]} 2. d4 {[%clk 0:03:00]}  d5 {[%clk 0:02:59]} 3. Nc3 {[%clk 0:02:59]}  Nf6 {[%clk 0:02:58]} 4. e5 {[%clk 0:02:59]}  Nfd7 {[%clk 0:02:59]} 5. f4 {[%clk 0:03:00]}  c5 {[%clk 0:02:58]} 6. Nf3 {[%clk 0:03:01]}  Nc6 {[%clk 0:02:58]} 7. Be3 {[%clk 0:03:01]}  a6 {[%clk 0:02:56]} 8. Qd2 {[%clk 0:02:53]}  b5 {[%clk 0:02:55]} 9. O-O-O {[%clk 0:02:46]}  b4 {[%clk 0:02:42]} 10. Ne2 {[%clk 0:02:39]}  c4 {[%clk 0:02:42]} 11. c3 {[%clk 0:02:36]}  bxc3 {[%clk 0:02:41]} 12. Nxc3 {[%clk 0:02:35]}  Bb4 {[%clk 0:02:41]} 13. a3 {[%clk 0:02:26]}  Na5 {[%clk 0:02:35]} 14. Kb1 {[%clk 0:02:13]}  Nb3 {[%clk 0:02:34]} 15. Qc2 {[%clk 0:02:13]}  a5 {[%clk 0:02:31]} 16. Nd2 {[%clk 0:02:09]}  Nxd2+ {[%clk 0:02:25]} 17. Bxd2 {[%clk 0:02:05]}  Qb6 {[%clk 0:02:24]} 18. Ka1 {[%clk 0:01:22]}  Qxd4 {[%clk 0:02:19]} 19. Nb5 {[%clk 0:01:03]}  Qb6 {[%clk 0:02:15]} 20. Bxb4 {[%clk 0:01:00]}  axb4 {[%clk 0:02:13]} 21. Nd6+ {[%clk 0:01:00]}  Ke7 {[%clk 0:02:13]} 22. Rb1 {[%clk 0:00:37]}  Nc5 {[%clk 0:02:06]} 23. Be2 {[%clk 0:00:28]}  Nb3+ {[%clk 0:02:00]} 24. Ka2 {[%clk 0:00:27]}  Nd4 {[%clk 0:02:01]} 25. Qd2 {[%clk 0:00:21]}  b3+ {[%clk 0:02:00]} 0-1


[Site "https://www.chess.com"]

[Event "Titled Tuesday Blitz May 10 Late 2022"]
[White "Riehle, Marco"]
[Black "Babazada, Khazar"]
[WhiteFideId "12904392"]
[BlackFideId "13413554"]
[WhiteElo "2462"]
[BlackElo "2406"]
[Result "1-0"]
[Round "06"]
[TimeControl "180+1"]
[Date "2022.05.10"]
[WhiteClock "0:00:07"]
[BlackClock "0:00:02"]

1. e4 {[%clk 0:03:00]}  Nf6 {[%clk 0:02:53]} 2. e5 {[%clk 0:03:00]}  Nd5 {[%clk 0:02:53]} 3. Nc3 {[%clk 0:03:00]}  Nb6 {[%clk 0:02:52]} 4. d4 {[%clk 0:02:58]}  d6 {[%clk 0:02:53]} 5. Nf3 {[%clk 0:02:58]}  g6 {[%clk 0:02:53]} 6. Bf4 {[%clk 0:02:56]}  Bg7 {[%clk 0:02:53]} 7. Qd2 {[%clk 0:02:56]}  Bg4 {[%clk 0:02:43]} 8. O-O-O {[%clk 0:02:50]}  Bxf3 {[%clk 0:02:37]} 9. gxf3 {[%clk 0:02:50]}  dxe5 {[%clk 0:02:38]} 10. dxe5 {[%clk 0:02:50]}  Qxd2+ {[%clk 0:02:32]} 11. Rxd2 {[%clk 0:02:51]}  c6 {[%clk 0:02:32]} 12. Bh3 {[%clk 0:02:30]}  O-O {[%clk 0:02:31]} 13. Rhd1 {[%clk 0:02:24]}  Na6 {[%clk 0:02:27]} 14. Bg3 {[%clk 0:02:18]}  Bh6 {[%clk 0:02:20]} 15. f4 {[%clk 0:02:18]}  Nc5 {[%clk 0:02:17]} 16. Kb1 {[%clk 0:02:14]}  a5 {[%clk 0:02:17]} 17. f3 {[%clk 0:02:07]}  a4 {[%clk 0:02:10]} 18. a3 {[%clk 0:02:03]}  Nc4 {[%clk 0:02:03]} 19. Rd4 {[%clk 0:01:48]}  b5 {[%clk 0:01:57]} 20. Ne4 {[%clk 0:01:39]}  Nxe4 {[%clk 0:01:04]} 21. fxe4 {[%clk 0:01:40]}  c5 {[%clk 0:01:04]} 22. Rd7 {[%clk 0:01:36]}  b4 {[%clk 0:01:04]} 23. axb4 {[%clk 0:01:28]}  cxb4 {[%clk 0:01:05]} 24. R1d4 {[%clk 0:01:22]}  Rfc8 {[%clk 0:00:40]} 25. Rxe7 {[%clk 0:01:21]}  Rc5 {[%clk 0:00:40]} 26. e6 {[%clk 0:01:20]}  a3 {[%clk 0:00:35]} 27. exf7+ {[%clk 0:00:42]}  Kf8 {[%clk 0:00:34]} 28. Re8+ {[%clk 0:00:43]}  Rxe8 {[%clk 0:00:34]} 29. fxe8=Q+ {[%clk 0:00:43]}  Kxe8 {[%clk 0:00:35]} 30. b3 {[%clk 0:00:40]}  Ne3 {[%clk 0:00:31]} 31. Rxb4 {[%clk 0:00:37]}  Rxc2 {[%clk 0:00:19]} 32. Ra4 {[%clk 0:00:30]}  Rb2+ {[%clk 0:00:19]} 33. Kc1 {[%clk 0:00:28]}  Rc2+ {[%clk 0:00:19]} 34. Kb1 {[%clk 0:00:29]}  Rb2+ {[%clk 0:00:18]} 35. Kc1 {[%clk 0:00:29]}  Bf8 {[%clk 0:00:18]} 36. f5 {[%clk 0:00:20]}  g5 {[%clk 0:00:15]} 37. Ra8+ {[%clk 0:00:13]}  Kf7 {[%clk 0:00:14]} 38. Ra7+ {[%clk 0:00:14]}  Ke8 {[%clk 0:00:14]} 39. Ra8+ {[%clk 0:00:14]}  Kd7 {[%clk 0:00:14]} 40. f6+ {[%clk 0:00:09]}  g4 {[%clk 0:00:14]} 41. Bxg4+ {[%clk 0:00:09]}  Nxg4 {[%clk 0:00:14]} 42. Rxf8 {[%clk 0:00:09]}  Re2 {[%clk 0:00:11]} 43. Ra8 {[%clk 0:00:10]}  Nxf6 {[%clk 0:00:07]} 44. Rxa3 {[%clk 0:00:09]}  Nxe4 {[%clk 0:00:07]} 45. Ra7+ {[%clk 0:00:09]}  Kc6 {[%clk 0:00:07]} 46. Rxh7 {[%clk 0:00:09]}  Kb5 {[%clk 0:00:08]} 47. Rb7+ {[%clk 0:00:08]}  Kc5 {[%clk 0:00:08]} 48. Bf4 {[%clk 0:00:07]}  Kd4 {[%clk 0:00:07]} 49. b4 {[%clk 0:00:08]}  Rf2 {[%clk 0:00:07]} 50. Bb8 {[%clk 0:00:07]}  Kc4 {[%clk 0:00:04]} 51. b5 {[%clk 0:00:06]}  Rf1+ {[%clk 0:00:03]} 52. Kc2 {[%clk 0:00:06]}  Rf2+ {[%clk 0:00:03]} 53. Kd1 {[%clk 0:00:06]}  Rb2 {[%clk 0:00:02]} 54. b6 {[%clk 0:00:06]}  Kd3 {[%clk 0:00:03]} 55. Rd7+ {[%clk 0:00:06]}  Ke3 {[%clk 0:00:03]} 56. b7 {[%clk 0:00:06]}  Rb1+ {[%clk 0:00:01]} 57. Kc2 {[%clk 0:00:07]}  Rb6 {[%clk 0:00:02]} 58. Ba7 {[%clk 0:00:07]} 1-0


[Site "https://www.chess.com"]

[Event "Titled Tuesday Blitz May 10 Late 2022"]
[White "Sadhwani, Raunak"]
[Black "Wagner, Dennis"]
[WhiteFideId "35093487"]
[BlackFideId "24650684"]
[WhiteElo "2616"]
[BlackElo "2355"]
[Result "1-0"]
[Round "06"]
[TimeControl "180+1"]
[Date "2022.05.10"]
[WhiteClock "0:01:37"]
[BlackClock "0:01:29"]

1. d4 {[%clk 0:03:00]}  Nf6 {[%clk 0:02:59]} 2. Nf3 {[%clk 0:03:01]}  d5 {[%clk 0:02:59]} 3. Bf4 {[%clk 0:03:02]}  Bf5 {[%clk 0:02:58]} 4. e3 {[%clk 0:03:01]}  e6 {[%clk 0:02:58]} 5. Nbd2 {[%clk 0:03:02]}  Bd6 {[%clk 0:02:58]} 6. c3 {[%clk 0:03:02]}  h6 {[%clk 0:02:56]} 7. Bg3 {[%clk 0:03:02]}  O-O {[%clk 0:02:54]} 8. Qb3 {[%clk 0:03:03]}  Qc8 {[%clk 0:02:53]} 9. Be2 {[%clk 0:03:03]}  Rd8 {[%clk 0:02:50]} 10. O-O {[%clk 0:03:02]}  c5 {[%clk 0:02:50]} 11. Bxd6 {[%clk 0:02:57]}  Rxd6 {[%clk 0:02:50]} 12. Qa3 {[%clk 0:02:58]}  Nbd7 {[%clk 0:02:48]} 13. Rac1 {[%clk 0:02:49]}  Qc7 {[%clk 0:02:40]} 14. c4 {[%clk 0:02:48]}  Ra6 {[%clk 0:02:40]} 15. Qb3 {[%clk 0:02:42]}  Rb6 {[%clk 0:02:40]} 16. Qa3 {[%clk 0:02:43]}  Ra6 {[%clk 0:02:37]} 17. Qb3 {[%clk 0:02:35]}  Rb6 {[%clk 0:02:37]} 18. Qc3 {[%clk 0:02:35]}  Rc8 {[%clk 0:02:28]} 19. b3 {[%clk 0:02:28]}  Bh7 {[%clk 0:02:08]} 20. Qb2 {[%clk 0:02:25]}  Rc6 {[%clk 0:01:57]} 21. cxd5 {[%clk 0:02:19]}  exd5 {[%clk 0:01:33]} 22. Bb5 {[%clk 0:02:18]}  Rb6 {[%clk 0:01:31]} 23. Bxd7 {[%clk 0:01:49]}  Nxd7 {[%clk 0:01:32]} 24. dxc5 {[%clk 0:01:49]}  Nxc5 {[%clk 0:01:32]} 25. b4 {[%clk 0:01:38]}  Qd8 {[%clk 0:01:29]} 26. Qc3 {[%clk 0:01:37]} 1-0


[Site "https://www.chess.com"]

[Event "Titled Tuesday Blitz May 10 Late 2022"]
[White "Sailer, Mike"]
[Black "Muradov, Soltan"]
[WhiteFideId "2012901"]
[BlackFideId "14002108"]
[WhiteElo "2109"]
[BlackElo "1854"]
[Result "1/2-1/2"]
[Round "06"]
[TimeControl "180+1"]
[Date "2022.05.11"]
[WhiteClock "0:00:41"]
[BlackClock "0:00:07"]

1. d4 {[%clk 0:02:59]}  Nf6 {[%clk 0:02:59]} 2. Nf3 {[%clk 0:02:59]}  e6 {[%clk 0:02:59]} 3. Bf4 {[%clk 0:03:00]}  b6 {[%clk 0:02:59]} 4. e3 {[%clk 0:02:59]}  Bb7 {[%clk 0:02:59]} 5. Be2 {[%clk 0:03:00]}  d6 {[%clk 0:02:59]} 6. c4 {[%clk 0:03:00]}  Nbd7 {[%clk 0:03:00]} 7. O-O {[%clk 0:03:00]}  Be7 {[%clk 0:03:00]} 8. Nc3 {[%clk 0:03:01]}  Nh5 {[%clk 0:02:59]} 9. Bg3 {[%clk 0:02:58]}  Nxg3 {[%clk 0:03:00]} 10. hxg3 {[%clk 0:02:58]}  O-O {[%clk 0:03:00]} 11. b4 {[%clk 0:02:56]}  Nf6 {[%clk 0:03:01]} 12. b5 {[%clk 0:02:55]}  c5 {[%clk 0:03:00]} 13. a4 {[%clk 0:02:54]}  cxd4 {[%clk 0:02:58]} 14. exd4 {[%clk 0:02:53]}  Rc8 {[%clk 0:02:58]} 15. a5 {[%clk 0:02:52]}  bxa5 {[%clk 0:02:57]} 16. Qa4 {[%clk 0:02:53]}  d5 {[%clk 0:02:55]} 17. c5 {[%clk 0:02:47]}  Ne4 {[%clk 0:02:47]} 18. Rfc1 {[%clk 0:02:40]}  Bf6 {[%clk 0:02:27]} 19. Qxa5 {[%clk 0:02:36]}  Qxa5 {[%clk 0:02:28]} 20. Rxa5 {[%clk 0:02:35]}  Ra8 {[%clk 0:02:29]} 21. c6 {[%clk 0:02:24]}  Bc8 {[%clk 0:02:15]} 22. b6 {[%clk 0:02:23]}  Rb8 {[%clk 0:01:06]} 23. b7 {[%clk 0:02:13]}  Bxb7 {[%clk 0:00:57]} 24. cxb7 {[%clk 0:02:12]}  Rxb7 {[%clk 0:00:58]} 25. Nxe4 {[%clk 0:02:02]}  dxe4 {[%clk 0:00:57]} 26. Ne5 {[%clk 0:02:03]}  g6 {[%clk 0:00:52]} 27. Rca1 {[%clk 0:01:51]}  Ra8 {[%clk 0:00:43]} 28. Bb5 {[%clk 0:01:35]}  Rd8 {[%clk 0:00:27]} 29. Bc6 {[%clk 0:01:05]}  Rc7 {[%clk 0:00:18]} 30. Bxe4 {[%clk 0:01:00]}  Rxd4 {[%clk 0:00:16]} 31. Bf3 {[%clk 0:00:48]}  Kg7 {[%clk 0:00:14]} 32. Nc6 {[%clk 0:00:43]}  Rd6 {[%clk 0:00:10]} 33. Nxa7 {[%clk 0:00:41]}  Bxa1 {[%clk 0:00:10]} 34. Rxa1 {[%clk 0:00:41]}  Rd2 {[%clk 0:00:07]} 1/2-1/2


[Site "https://www.chess.com"]

[Event "Titled Tuesday Blitz May 10 Late 2022"]
[White "Sarkar, Justin"]
[Black "Sernecki, Franciszek"]
[WhiteFideId "2010011"]
[BlackFideId "1169297"]
[WhiteElo "2020"]
[BlackElo "2189"]
[Result "1/2-1/2"]
[Round "06"]
[TimeControl "180+1"]
[Date "2022.05.11"]
[WhiteClock "0:00:24"]
[BlackClock "0:00:26"]

1. d4 {[%clk 0:02:54]}  e6 {[%clk 0:02:59]} 2. c4 {[%clk 0:02:50]}  Nf6 {[%clk 0:02:58]} 3. Nc3 {[%clk 0:02:40]}  Bb4 {[%clk 0:02:57]} 4. e3 {[%clk 0:02:36]}  c5 {[%clk 0:02:55]} 5. Bd3 {[%clk 0:02:28]}  Nc6 {[%clk 0:02:50]} 6. Nf3 {[%clk 0:02:24]}  d6 {[%clk 0:02:48]} 7. O-O {[%clk 0:02:22]}  Bxc3 {[%clk 0:02:46]} 8. bxc3 {[%clk 0:02:23]}  e5 {[%clk 0:02:45]} 9. e4 {[%clk 0:02:04]}  O-O {[%clk 0:02:42]} 10. d5 {[%clk 0:02:00]}  Ne7 {[%clk 0:02:41]} 11. Nh4 {[%clk 0:01:51]}  h6 {[%clk 0:02:31]} 12. f3 {[%clk 0:01:31]}  Ng6 {[%clk 0:02:29]} 13. Nf5 {[%clk 0:01:28]}  Nf4 {[%clk 0:02:21]} 14. Bc2 {[%clk 0:01:15]}  b6 {[%clk 0:02:14]} 15. g3 {[%clk 0:01:13]}  Ng6 {[%clk 0:02:09]} 16. Kg2 {[%clk 0:01:07]}  Bxf5 {[%clk 0:01:35]} 17. exf5 {[%clk 0:01:05]}  Ne7 {[%clk 0:01:36]} 18. g4 {[%clk 0:01:00]}  Ne8 {[%clk 0:01:06]} 19. h4 {[%clk 0:00:54]}  f6 {[%clk 0:01:00]} 20. Be4 {[%clk 0:00:53]}  Nc7 {[%clk 0:00:57]} 21. a4 {[%clk 0:00:50]}  a5 {[%clk 0:00:55]} 22. Be3 {[%clk 0:00:47]}  Qd7 {[%clk 0:00:53]} 23. Qd2 {[%clk 0:00:47]}  Rab8 {[%clk 0:00:50]} 24. Kf2 {[%clk 0:00:43]}  Kf7 {[%clk 0:00:49]} 25. Ke2 {[%clk 0:00:40]}  Ke8 {[%clk 0:00:49]} 26. Rfe1 {[%clk 0:00:28]}  Kd8 {[%clk 0:00:47]} 27. Red1 {[%clk 0:00:26]}  Kc8 {[%clk 0:00:46]} 28. Rdb1 {[%clk 0:00:24]}  Rb7 {[%clk 0:00:26]} 29. h5 {[%clk 0:00:24]} 1/2-1/2


[Site "https://www.chess.com"]

[Event "Titled Tuesday Blitz May 10 Late 2022"]
[White "Sharbaf, Mohsen"]
[Black "Melikhov, Evgeny V."]
[WhiteFideId "12501808"]
[BlackFideId "4122046"]
[WhiteElo "2187"]
[BlackElo "1931"]
[Result "1-0"]
[Round "06"]
[TimeControl "180+1"]
[Date "2022.05.11"]
[WhiteClock "0:01:29"]
[BlackClock "0:00:13"]

1. c4 {[%clk 0:02:56]}  e5 {[%clk 0:02:59]} 2. g3 {[%clk 0:02:55]}  d6 {[%clk 0:02:58]} 3. Bg2 {[%clk 0:02:55]}  f5 {[%clk 0:02:59]} 4. Nc3 {[%clk 0:02:55]}  Nf6 {[%clk 0:02:59]} 5. d4 {[%clk 0:02:55]}  e4 {[%clk 0:02:58]} 6. Bg5 {[%clk 0:02:54]}  Be7 {[%clk 0:02:57]} 7. h4 {[%clk 0:02:50]}  O-O {[%clk 0:02:55]} 8. Nh3 {[%clk 0:02:50]}  c6 {[%clk 0:02:53]} 9. e3 {[%clk 0:02:49]}  Na6 {[%clk 0:02:48]} 10. Bxf6 {[%clk 0:02:48]}  Bxf6 {[%clk 0:02:48]} 11. Nf4 {[%clk 0:02:48]}  Nc7 {[%clk 0:02:46]} 12. Qb3 {[%clk 0:02:31]}  Qe8 {[%clk 0:02:39]} 13. c5+ {[%clk 0:02:26]}  d5 {[%clk 0:02:38]} 14. Qd1 {[%clk 0:02:24]}  g6 {[%clk 0:02:19]} 15. Bf1 {[%clk 0:02:19]}  Ne6 {[%clk 0:02:18]} 16. Nxe6 {[%clk 0:02:16]}  Bxe6 {[%clk 0:02:18]} 17. Be2 {[%clk 0:02:16]}  Kg7 {[%clk 0:02:05]} 18. Kf1 {[%clk 0:02:16]}  h6 {[%clk 0:02:04]} 19. Kg2 {[%clk 0:02:16]}  Rh8 {[%clk 0:02:02]} 20. b4 {[%clk 0:02:15]}  a6 {[%clk 0:02:01]} 21. a4 {[%clk 0:02:15]}  g5 {[%clk 0:01:53]} 22. hxg5 {[%clk 0:02:14]}  hxg5 {[%clk 0:01:53]} 23. Rxh8 {[%clk 0:02:13]}  Qxh8 {[%clk 0:01:53]} 24. Qh1 {[%clk 0:02:14]}  Qxh1+ {[%clk 0:01:52]} 25. Rxh1 {[%clk 0:02:12]}  Rh8 {[%clk 0:01:49]} 26. Rxh8 {[%clk 0:02:12]}  Kxh8 {[%clk 0:01:49]} 27. b5 {[%clk 0:02:11]}  axb5 {[%clk 0:01:49]} 28. axb5 {[%clk 0:02:11]}  f4 {[%clk 0:01:37]} 29. Bh5 {[%clk 0:02:05]}  f3+ {[%clk 0:01:31]} 30. Kf1 {[%clk 0:02:02]}  Bd7 {[%clk 0:01:31]} 31. b6 {[%clk 0:01:54]}  Kg7 {[%clk 0:01:18]} 32. g4 {[%clk 0:01:51]}  Kf8 {[%clk 0:01:05]} 33. Kg1 {[%clk 0:01:51]}  Ke7 {[%clk 0:01:03]} 34. Nb1 {[%clk 0:01:51]}  Kd8 {[%clk 0:01:00]} 35. Nd2 {[%clk 0:01:51]}  Ke7 {[%clk 0:00:58]} 36. Nf1 {[%clk 0:01:51]}  Be6 {[%clk 0:00:48]} 37. Kh2 {[%clk 0:01:48]}  Bd7 {[%clk 0:00:46]} 38. Kh3 {[%clk 0:01:46]}  Kf8 {[%clk 0:00:45]} 39. Ng3 {[%clk 0:01:46]}  Kg7 {[%clk 0:00:45]} 40. Nf5+ {[%clk 0:01:45]}  Bxf5 {[%clk 0:00:43]} 41. gxf5 {[%clk 0:01:45]}  Bd8 {[%clk 0:00:41]} 42. Be8 {[%clk 0:01:43]}  Kf6 {[%clk 0:00:40]} 43. Bd7 {[%clk 0:01:42]}  Ke7 {[%clk 0:00:22]} 44. Bc8 {[%clk 0:01:42]}  Ke8 {[%clk 0:00:21]} 45. Bxb7 {[%clk 0:01:39]}  Kd7 {[%clk 0:00:21]} 46. Kg4 {[%clk 0:01:39]}  Bf6 {[%clk 0:00:21]} 47. Kh5 {[%clk 0:01:34]}  Kd8 {[%clk 0:00:20]} 48. Kg6 {[%clk 0:01:34]}  Bxd4 {[%clk 0:00:15]} 49. exd4 {[%clk 0:01:31]}  e3 {[%clk 0:00:15]} 50. fxe3 {[%clk 0:01:30]}  g4 {[%clk 0:00:15]} 51. f6 {[%clk 0:01:29]}  g3 {[%clk 0:00:13]} 52. f7 {[%clk 0:01:29]} 1-0


[Site "https://www.chess.com"]

[Event "Titled Tuesday Blitz May 10 Late 2022"]
[White "Sjugirov, Sanan"]
[Black "Kamsky, Gata"]
[WhiteFideId "4189302"]
[BlackFideId "2000024"]
[WhiteElo "2602"]
[BlackElo "2645"]
[Result "1-0"]
[Round "06"]
[TimeControl "180+1"]
[Date "2022.05.10"]
[WhiteClock "0:00:16"]
[BlackClock "0:00:21"]

1. Nf3 {[%clk 0:03:00]}  Nf6 {[%clk 0:02:58]} 2. c4 {[%clk 0:03:00]}  g6 {[%clk 0:02:55]} 3. Nc3 {[%clk 0:03:00]}  Bg7 {[%clk 0:02:55]} 4. e4 {[%clk 0:02:59]}  d6 {[%clk 0:02:55]} 5. d4 {[%clk 0:02:59]}  O-O {[%clk 0:02:55]} 6. Be2 {[%clk 0:02:58]}  e5 {[%clk 0:02:55]} 7. O-O {[%clk 0:02:58]}  Nc6 {[%clk 0:02:54]} 8. d5 {[%clk 0:02:57]}  Ne7 {[%clk 0:02:55]} 9. b4 {[%clk 0:02:57]}  Ne8 {[%clk 0:02:53]} 10. a4 {[%clk 0:02:37]}  h6 {[%clk 0:02:47]} 11. a5 {[%clk 0:02:33]}  f5 {[%clk 0:02:47]} 12. c5 {[%clk 0:02:29]}  Nf6 {[%clk 0:02:33]} 13. Nd2 {[%clk 0:02:22]}  fxe4 {[%clk 0:02:25]} 14. Ndxe4 {[%clk 0:02:22]}  Nxe4 {[%clk 0:02:23]} 15. Nxe4 {[%clk 0:02:23]}  Nf5 {[%clk 0:02:14]} 16. Bb2 {[%clk 0:01:40]}  Nd4 {[%clk 0:02:11]} 17. cxd6 {[%clk 0:01:29]}  cxd6 {[%clk 0:02:08]} 18. Bxd4 {[%clk 0:01:28]}  exd4 {[%clk 0:02:08]} 19. Bd3 {[%clk 0:01:28]}  a6 {[%clk 0:02:00]} 20. Rc1 {[%clk 0:01:22]}  Bf5 {[%clk 0:01:51]} 21. Ng3 {[%clk 0:01:20]}  Bxd3 {[%clk 0:01:48]} 22. Qxd3 {[%clk 0:01:21]}  Qg5 {[%clk 0:01:38]} 23. Rc7 {[%clk 0:01:18]}  Rf7 {[%clk 0:01:32]} 24. Rxf7 {[%clk 0:00:53]}  Kxf7 {[%clk 0:01:32]} 25. f4 {[%clk 0:00:54]}  Qe7 {[%clk 0:01:22]} 26. Ne4 {[%clk 0:00:37]}  Re8 {[%clk 0:01:19]} 27. Re1 {[%clk 0:00:37]}  Qc7 {[%clk 0:01:11]} 28. f5 {[%clk 0:00:30]}  Re5 {[%clk 0:00:40]} 29. fxg6+ {[%clk 0:00:29]}  Kg8 {[%clk 0:00:41]} 30. Rf1 {[%clk 0:00:26]}  Qd7 {[%clk 0:00:36]} 31. h3 {[%clk 0:00:18]}  Kh8 {[%clk 0:00:23]} 32. Qf3 {[%clk 0:00:16]}  Qe8 {[%clk 0:00:21]} 33. Nxd6 {[%clk 0:00:16]} 1-0


[Site "https://www.chess.com"]

[Event "Titled Tuesday Blitz May 10 Late 2022"]
[White "Skliarov, Viktor"]
[Black "Svane, Frederik"]
[WhiteFideId "14106736"]
[BlackFideId "12923044"]
[WhiteElo "2229"]
[BlackElo "2459"]
[Result "0-1"]
[Round "06"]
[TimeControl "180+1"]
[Date "2022.05.10"]
[WhiteClock "0:00:02"]
[BlackClock "0:00:27"]

1. e4 {[%clk 0:03:00]}  e5 {[%clk 0:02:59]} 2. Nc3 {[%clk 0:03:00]}  Nc6 {[%clk 0:02:59]} 3. Bc4 {[%clk 0:03:01]}  Nf6 {[%clk 0:02:59]} 4. d3 {[%clk 0:03:01]}  Bc5 {[%clk 0:02:55]} 5. a3 {[%clk 0:03:01]}  a6 {[%clk 0:02:52]} 6. h3 {[%clk 0:02:59]}  d6 {[%clk 0:02:51]} 7. Nge2 {[%clk 0:02:59]}  O-O {[%clk 0:02:50]} 8. Ng3 {[%clk 0:02:59]}  Ne7 {[%clk 0:02:49]} 9. Bg5 {[%clk 0:02:52]}  c6 {[%clk 0:02:48]} 10. Bxf6 {[%clk 0:02:36]}  gxf6 {[%clk 0:02:48]} 11. Qf3 {[%clk 0:02:32]}  Ng6 {[%clk 0:02:29]} 12. Nh5 {[%clk 0:02:21]}  Kh8 {[%clk 0:02:29]} 13. Qxf6+ {[%clk 0:01:59]}  Qxf6 {[%clk 0:02:28]} 14. Nxf6 {[%clk 0:02:00]}  Nh4 {[%clk 0:02:19]} 15. g4 {[%clk 0:01:19]}  Kg7 {[%clk 0:02:03]} 16. Nh5+ {[%clk 0:01:18]}  Kh6 {[%clk 0:02:03]} 17. Ng3 {[%clk 0:01:12]}  Kg5 {[%clk 0:02:02]} 18. Nf5 {[%clk 0:00:44]}  Be6 {[%clk 0:01:54]} 19. Nxh4 {[%clk 0:00:37]}  Kxh4 {[%clk 0:01:54]} 20. Ke2 {[%clk 0:00:37]}  Rad8 {[%clk 0:01:51]} 21. Raf1 {[%clk 0:00:30]}  d5 {[%clk 0:01:49]} 22. Bb3 {[%clk 0:00:30]}  Bd4 {[%clk 0:01:46]} 23. Nd1 {[%clk 0:00:23]}  Rg8 {[%clk 0:01:30]} 24. f3 {[%clk 0:00:22]}  Kg5 {[%clk 0:01:24]} 25. h4+ {[%clk 0:00:20]}  Kf4 {[%clk 0:01:24]} 26. g5 {[%clk 0:00:17]}  h6 {[%clk 0:01:18]} 27. c3 {[%clk 0:00:17]}  Bb6 {[%clk 0:01:11]} 28. Bc2 {[%clk 0:00:09]}  hxg5 {[%clk 0:01:02]} 29. h5 {[%clk 0:00:09]}  Rh8 {[%clk 0:00:44]} 30. Nf2 {[%clk 0:00:07]}  Bxf2 {[%clk 0:00:41]} 31. Rxf2 {[%clk 0:00:07]}  Rh6 {[%clk 0:00:42]} 32. Rfh2 {[%clk 0:00:07]}  dxe4 {[%clk 0:00:34]} 33. fxe4 {[%clk 0:00:05]}  g4 {[%clk 0:00:34]} 34. Rf1+ {[%clk 0:00:02]}  Kg5 {[%clk 0:00:34]} 35. Ke3 {[%clk 0:00:03]}  Rdh8 {[%clk 0:00:30]} 36. d4 {[%clk 0:00:03]}  Rxh5 {[%clk 0:00:30]} 37. Rxh5+ {[%clk 0:00:02]}  Rxh5 {[%clk 0:00:31]} 38. d5 {[%clk 0:00:02]}  cxd5 {[%clk 0:00:31]} 39. exd5 {[%clk 0:00:03]}  Bxd5 {[%clk 0:00:31]} 40. Rf5+ {[%clk 0:00:03]}  Kh4 {[%clk 0:00:31]} 41. Rxh5+ {[%clk 0:00:01]}  Kxh5 {[%clk 0:00:31]} 42. b3 {[%clk 0:00:01]}  Kg5 {[%clk 0:00:30]} 43. c4 {[%clk 0:00:02]}  Be6 {[%clk 0:00:29]} 44. b4 {[%clk 0:00:02]}  Bxc4 {[%clk 0:00:28]} 45. Be4 {[%clk 0:00:02]}  b6 {[%clk 0:00:27]} 0-1


[Site "https://www.chess.com"]